fUST/lending_fUST_20260608
["ID","MTS","AMOUNT","RATE_DAILY","PERIOD"]
[424449928,1780915549000,-152.0,0.00013358,7]
[424449931,1780915615000,-147.73097561,0.00013905,2]
[424449930,1780915615000,-158.42364246,0.00013905,2]
[424449929,1780915615000,-278.84538193,0.00013905,2]
[424449977,1780915832000,-770.04698373,0.00011923,2]
[424449992,1780915832000,-220.99959298,0.00013905,2]
[424449994,1780915832000,-169.514,0.00014046,2]
[424449985,1780915832000,-190.47567197,0.00011923,2]
[424449989,1780915832000,-4889.17543025,0.00013766,2]
[424449996,1780915832000,-500.0,0.00014232,2]
[424449987,1780915832000,-110.82456975,0.00013766,2]
[424449998,1780915832000,-385.42166815,0.00014233,2]
[424450000,1780915832000,-2842.69890737,0.00014233,2]
[424450207,1780915838000,-708.91329514,0.00014229,2]
[424450208,1780915838000,-708.91329514,0.00014229,2]
[424450204,1780915838000,-380.16173233,0.00014229,2]
[424450205,1780915838000,-157.60271019,0.00014229,2]
[424450211,1780915838000,-708.91329514,0.00014229,2]
[424450206,1780915838000,-708.91329514,0.00014229,2]
[424450210,1780915838000,-708.91329514,0.00014229,2]
[424450212,1780915838000,-708.91329514,0.00014229,2]
[424450213,1780915838000,-708.91329514,0.00014229,2]
[424450214,1780915838000,-708.91329514,0.00014229,2]
[424450218,1780915838000,-708.91329514,0.00014229,2]
[424450215,1780915838000,-708.91329514,0.00014229,2]
[424450217,1780915838000,-708.91329514,0.00014229,2]
[424450216,1780915838000,-708.91329514,0.00014229,2]
[424450220,1780915838000,-4182.82025782,0.00014233,2]
[424450221,1780915838000,-33667.70283594,0.00014233,2]
[424450209,1780915838000,-708.91329514,0.00014229,2]
[424450219,1780915838000,-23186.36723832,0.00014233,2]
[424450253,1780915841000,-1449.84697921,0.00014233,2]
[424450279,1780915843000,-111601.11095856,0.00014233,2]
[424450282,1780915843000,-1722.34304284,0.00014233,2]
[424450281,1780915843000,-4913.35858039,0.00014233,2]
[424450280,1780915843000,-516.35630213,0.00014233,2]
[424450286,1780915846000,-5000.0,0.00014091,2]
[424450289,1780915846000,-15303.59238438,0.00014233,2]
[424450287,1780915846000,-102778.11652751,0.00014233,2]
[424450304,1780917032000,-968.45172118,0.00010167,2]
[424450554,1780917038000,-1016.014498,0.00011134,2]
[424450541,1780917038000,-616.75456677,0.00010586,2]
[424450531,1780917038000,-5000.0,0.0001027,2]
[424450530,1780917038000,-4031.54827882,0.00010167,2]
[424450532,1780917038000,-183.96409846,0.00010374,2]
[424450536,1780917038000,-616.75456677,0.00010586,2]
[424450538,1780917038000,-616.75456677,0.00010586,2]
[424450533,1780917038000,-151.0,0.00010479,2]
[424450534,1780917038000,-616.75456677,0.00010586,2]
[424450537,1780917038000,-616.75456677,0.00010586,2]
[424450539,1780917038000,-616.75456677,0.00010586,2]
[424450540,1780917038000,-616.75456677,0.00010586,2]
[424450535,1780917038000,-376.43510977,0.00010586,2]
[424450542,1780917038000,-616.75456677,0.00010586,2]
[424450550,1780917038000,-616.75456677,0.00010586,2]
[424450552,1780917038000,-616.75456677,0.00010586,2]
[424450544,1780917038000,-616.75456677,0.00010586,2]
[424450547,1780917038000,-616.75456677,0.00010586,2]
[424450546,1780917038000,-616.75456677,0.00010586,2]
[424450553,1780917038000,-4466.75324448,0.00011134,2]
[424450549,1780917038000,-616.75456677,0.00010586,2]
[424450545,1780917038000,-616.75456677,0.00010586,2]
[424450548,1780917038000,-616.75456677,0.00010586,2]
[424450543,1780917038000,-616.75456677,0.00010586,2]
[424450551,1780917038000,-616.75456677,0.00010586,2]
[424450568,1780917041000,-1157.0,0.00011134,2]
[424450611,1780917046000,-532.72182746,0.00010166,2]
[424450606,1780917046000,-399.12043455,0.00010064,2]
[424450607,1780917046000,-144.73261353,0.00010064,2]
[424450609,1780917046000,-500.0,0.00010166,2]
[424450608,1780917046000,-500.0,0.00010166,2]
[424450610,1780917046000,-500.0,0.00010166,2]
[424450613,1780917046000,-500.0,0.00010166,2]
[424450612,1780917046000,-500.0,0.00010166,2]
[424450618,1780917046000,-500.0,0.00010166,2]
[424450621,1780917046000,-300.0,0.00011356,2]
[424450616,1780917046000,-500.0,0.00010166,2]
[424450622,1780917046000,-300.0,0.00011356,2]
[424450614,1780917046000,-506.66849424,0.00010166,2]
[424450615,1780917046000,-500.0,0.00010166,2]
[424450617,1780917046000,-431.39393471,0.00010166,2]
[424450619,1780917046000,-2458.12813562,0.00011134,2]
[424450620,1780917046000,-300.0,0.00011356,2]
[424450630,1780917047000,-300.0,0.00011356,2]
[424450629,1780917047000,-300.0,0.00011356,2]
[424450635,1780917047000,-600.0,0.00011582,2]
[424450631,1780917047000,-300.0,0.00011356,2]
[424450628,1780917047000,-300.0,0.00011356,2]
[424450627,1780917047000,-300.0,0.00011356,2]
[424450626,1780917047000,-300.0,0.00011356,2]
[424450625,1780917047000,-300.0,0.00011356,2]
[424450637,1780917047000,-500.0,0.00012196,2]
[424450624,1780917047000,-300.0,0.00011356,2]
[424450623,1780917047000,-300.0,0.00011356,2]
[424450633,1780917047000,-300.0,0.00011356,2]
[424450636,1780917047000,-169.514,0.00012073,2]
[424450632,1780917047000,-300.0,0.00011356,2]
[424450634,1780917047000,-300.0,0.00011356,2]
[424450642,1780917047000,-720.0,0.0001274,2]
[424450650,1780917047000,-1151.74594781,0.00013933,2]
[424450651,1780917047000,-864.0,0.00014014,2]
[424450647,1780917047000,-49784.22244431,0.00013933,2]
[424450646,1780917047000,-244.47888887,0.00013365,14]
[424450648,1780917047000,-1106.02735673,0.00013933,2]
[424450644,1780917047000,-220.56511237,0.00012893,2]
[424450652,1780917047000,-3391.30281657,0.00014194,2]
[424450649,1780917047000,-1687.02391503,0.00013933,2]
[424450638,1780917047000,-162.37724536,0.00012196,2]
[424450643,1780917047000,-153.42214266,0.00012893,2]
[424450640,1780917047000,-152.0,0.00012353,7]
[424450645,1780917047000,-153.42214265,0.00013292,2]
[424450639,1780917047000,-500.0,0.00012353,2]
[424450641,1780917047000,-152.0,0.00012377,7]
[424450680,1780917049000,-208.07460256,0.00015397,2]
[424450681,1780917049000,-374.15975032,0.00015397,2]
[424450688,1780917049000,-500.0,0.00016438,2]
[424450683,1780917049000,-996.0,0.000155,2]
[424450689,1780917049000,-500.0,0.00016438,2]
[424450684,1780917049000,-160.0,0.00016355,2]
[424450691,1780917049000,-500.0,0.00016438,2]
[424450690,1780917049000,-500.33422246,0.00016438,2]
[424450693,1780917049000,-372.58854744,0.00016438,2]
[424450695,1780917049000,-500.52125831,0.00016438,2]
[424450694,1780917049000,-500.0,0.00016438,2]
[424450697,1780917049000,-500.0,0.00016438,2]
[424450698,1780917049000,-500.64550907,0.00016438,2]
[424450696,1780917049000,-500.0,0.00016438,2]
[424450686,1780917049000,-235.22731082,0.000164,2]
[424450701,1780917049000,-500.0,0.00016438,2]
[424450700,1780917049000,-500.95757858,0.00016438,2]
[424450702,1780917049000,-500.0,0.00016438,2]
[424450692,1780917049000,-127.41145256,0.00016438,2]
[424450679,1780917049000,-444.0,0.00015381,2]
[424450675,1780917049000,-1416.0,0.00015381,2]
[424450685,1780917049000,-1147.60422603,0.000164,2]
[424450659,1780917049000,-500.0,0.00010586,2]
[424450658,1780917049000,-500.0,0.00010586,2]
[424450661,1780917049000,-500.0,0.00010586,2]
[424450663,1780917049000,-500.0,0.00010586,2]
[424450671,1780917049000,-290.8965812,0.00010586,2]
[424450672,1780917049000,-1258.87978213,0.00014194,2]
[424450666,1780917049000,-500.0,0.00010586,2]
[424450673,1780917049000,-1235.4237398,0.00014194,2]
[424450667,1780917049000,-500.0,0.00010586,2]
[424450678,1780917049000,-186.0,0.00015381,2]
[424450665,1780917049000,-500.0,0.00010586,2]
[424450669,1780917049000,-500.0,0.00010586,2]
[424450668,1780917049000,-500.0,0.00010586,2]
[424450670,1780917049000,-500.0,0.00010586,2]
[424450674,1780917049000,-251.66945896,0.000142,2]
[424450703,1780917049000,-500.0,0.00016438,2]
[424450676,1780917049000,-2208.0,0.00015381,2]
[424450677,1780917049000,-3625.0,0.00015381,2]
[424450687,1780917049000,-256.19700284,0.00016413,2]
[424450682,1780917049000,-1000.0,0.00015416,2]
[424450664,1780917049000,-500.0,0.00010586,2]
[424450704,1780917049000,-491.05418433,0.00016438,2]
[424450711,1780917049000,-500.79305604,0.00016438,2]
[424450705,1780917049000,-500.64354822,0.00016438,2]
[424450735,1780917049000,-196.17520481,0.00016438,2]
[424450731,1780917049000,-500.60674013,0.00016438,2]
[424450733,1780917049000,-500.3335105,0.00016438,2]
[424450726,1780917049000,-500.0,0.00016438,2]
[424450738,1780917049000,-500.0,0.00016438,2]
[424450732,1780917049000,-500.59971154,0.00016438,2]
[424450734,1780917049000,-500.0,0.00016438,2]
[424450736,1780917049000,-500.0,0.00016438,2]
[424450740,1780917049000,-781.01,0.00016438,2]
[424450741,1780917049000,-500.0,0.00016438,2]
[424450745,1780917049000,-500.0,0.00016438,2]
[424450739,1780917049000,-735.86,0.00016438,2]
[424450742,1780917049000,-510.83041186,0.00016438,2]
[424450744,1780917049000,-500.0,0.00016438,2]
[424450746,1780917049000,-963.68,0.00016438,2]
[424450743,1780917049000,-500.0,0.00016438,2]
[424450747,1780917049000,-500.0,0.00016438,2]
[424450748,1780917049000,-500.0,0.00016438,2]
[424450708,1780917049000,-500.42606347,0.00016438,2]
[424450737,1780917049000,-9853.86,0.00016438,2]
[424450728,1780917049000,-500.0,0.00016438,2]
[424450710,1780917049000,-500.65245183,0.00016438,2]
[424450727,1780917049000,-495.82176625,0.00016438,2]
[424450706,1780917049000,-683.25,0.00016438,2]
[424450729,1780917049000,-500.86350464,0.00016438,2]
[424450707,1780917049000,-500.75720331,0.00016438,2]
[424450699,1780917049000,-501.33282738,0.00016438,2]
[424450712,1780917049000,-500.8366693,0.00016438,2]
[424450713,1780917049000,-500.8540361,0.00016438,2]
[424450714,1780917049000,-500.99698391,0.00016438,2]
[424450715,1780917049000,-500.70880815,0.00016438,2]
[424450723,1780917049000,-500.34884033,0.00016438,2]
[424450709,1780917049000,-500.38603112,0.00016438,2]
[424450720,1780917049000,-500.37208894,0.00016438,2]
[424450719,1780917049000,-500.76977795,0.00016438,2]
[424450716,1780917049000,-500.60120866,0.00016438,2]
[424450717,1780917049000,-501.62857366,0.00016438,2]
[424450718,1780917049000,-282.79255227,0.00016438,2]
[424450730,1780917049000,-500.0,0.00016438,2]
[424450721,1780917049000,-500.81001796,0.00016438,2]
[424450722,1780917049000,-500.43363539,0.00016438,2]
[424450724,1780917049000,-500.0,0.00016438,2]
[424450725,1780917049000,-500.26438177,0.00016438,2]
[424450758,1780917050000,-896.67,0.00016438,2]
[424450767,1780917050000,-500.0,0.00016438,2]
[424450778,1780917050000,-305.74806012,0.00016438,2]
[424450777,1780917050000,-773.48,0.00016438,2]
[424450770,1780917050000,-500.0,0.00016438,2]
[424450769,1780917050000,-500.0,0.00016438,2]
[424450768,1780917050000,-631.94,0.00016438,2]
[424450771,1780917050000,-500.94384219,0.00016438,2]
[424450772,1780917050000,-500.0,0.00016438,2]
[424450759,1780917050000,-500.0,0.00016438,2]
[424450766,1780917050000,-500.0,0.00016438,2]
[424450756,1780917050000,-710.57,0.00016438,2]
[424450761,1780917050000,-500.0,0.00016438,2]
[424450753,1780917050000,-500.0,0.00016438,2]
[424450755,1780917050000,-500.0,0.00016438,2]
[424450764,1780917050000,-500.0,0.00016438,2]
[424450760,1780917050000,-500.0,0.00016438,2]
[424450765,1780917050000,-500.95616048,0.00016438,2]
[424450754,1780917050000,-500.0,0.00016438,2]
[424450762,1780917050000,-500.48705418,0.00016438,2]
[424450773,1780917050000,-500.0,0.00016438,2]
[424450763,1780917050000,-2125.4,0.00016438,2]
[424450749,1780917050000,-963.82,0.00016438,2]
[424450751,1780917050000,-1586.06,0.00016438,2]
[424450752,1780917050000,-830.62,0.00016438,2]
[424450750,1780917050000,-500.0,0.00016438,2]
[424450757,1780917050000,-500.0,0.00016438,2]
[424450774,1780917050000,-448.32291869,0.00016438,2]
[424450784,1780917050000,-500.0,0.00016712,2]
[424450775,1780917050000,-500.0,0.00016438,2]
[424450806,1780917050000,-102.60941543,0.00016712,2]
[424450805,1780917050000,-500.0,0.00016712,2]
[424450804,1780917050000,-781.01,0.00016712,2]
[424450803,1780917050000,-175.38058457,0.00016712,2]
[424450802,1780917050000,-374.07219647,0.00016712,2]
[424450801,1780917050000,-186.40721896,0.00016712,2]
[424450795,1780917050000,-500.0,0.00016712,2]
[424450794,1780917050000,-500.0,0.00016712,2]
[424450793,1780917050000,-285.26768346,0.00016712,2]
[424450792,1780917050000,-500.0,0.00016712,2]
[424450776,1780917050000,-500.0,0.00016438,2]
[424450791,1780917050000,-500.0,0.00016712,2]
[424450797,1780917050000,-5589.07848166,0.00016712,2]
[424450798,1780917050000,-382.25043126,0.00016712,2]
[424450796,1780917050000,-2649.59259302,0.00016712,2]
[424450779,1780917050000,-1147.60422603,0.000166,2]
[424450781,1780917050000,-500.0,0.00016712,2]
[424450800,1780917050000,-500.0,0.00016712,2]
[424450783,1780917050000,-500.0,0.00016712,2]
[424450782,1780917050000,-500.0,0.00016712,2]
[424450780,1780917050000,-235.22731082,0.000166,2]
[424450788,1780917050000,-500.0,0.00016712,2]
[424450786,1780917050000,-500.0,0.00016712,2]
[424450787,1780917050000,-500.0,0.00016712,2]
[424450789,1780917050000,-250.74726338,0.00016712,2]
[424450790,1780917050000,-683.25,0.00016712,2]
[424450785,1780917050000,-500.0,0.00016712,2]
[424450799,1780917050000,-1232.93849406,0.00016712,2]
[424450814,1780917705000,4273.95641362,0.00024468,120]
[424450815,1780917723000,12540.36456491,7.6e-05,2]
[424450816,1780917729000,-445.94186165,7.6e-05,2]
[424450817,1780917731000,-724.34381104,7.6e-05,2]
[424450818,1780917733000,-669.44862131,7.6e-05,2]
[424450819,1780917735000,-1084.33859088,7.6e-05,2]
[424450820,1780917736000,-456.27,7.6e-05,2]
[424450821,1780917739000,-686.4799977,7.6e-05,2]
[424450822,1780917741000,-720.75504863,7.6e-05,2]
[424450823,1780917759000,-218.51663288,7.599e-05,2]
[424450824,1780917762000,-152.0,7.599e-05,2]
[424450826,1780917764000,-235.67396955,7.599e-05,2]
[424450825,1780917764000,-167.42108723,7.599e-05,2]
[424450827,1780917765000,-302.26375056,7.599e-05,2]
[424450828,1780917766000,-138.62254484,7.599e-05,2]
[424450830,1780917771000,-11.96642859,7.599e-05,2]
[424450829,1780917771000,-399.31517527,7.599e-05,2]
[424450831,1780917774000,-300.0,7.599e-05,2]
[424450832,1780917775000,-184.82456274,7.599e-05,2]
[424450833,1780917776000,-41.14672878,7.599e-05,2]
[424450835,1780917776000,-199.53298916,7.599e-05,2]
[424450834,1780917776000,-537.93772011,7.599e-05,2]
[424450837,1780917780000,-271.8617283,7.599e-05,2]
[424450836,1780917780000,-338.40473095,7.599e-05,2]
[424450838,1780917781000,-266.07599181,7.599e-05,2]
[424450840,1780917781000,-537.93772011,7.599e-05,2]
[424450841,1780917781000,-295.46297999,7.599e-05,2]
[424450839,1780917781000,-537.93772011,7.599e-05,2]
[424450842,1780917798000,-176.385527,7.599e-05,2]
[424450843,1780917809000,-176.385527,7.599e-05,2]
[424450846,1780917821000,-500.0,7.599e-05,2]
[424450847,1780917835000,-500.0,7.599e-05,2]
[424450848,1780917847000,-864.0,7.599e-05,2]
[424450849,1780917859000,-864.0,7.599e-05,2]
[424450858,1780917956000,-220.1081532,7.598e-05,2]
[424450855,1780917956000,-500.0,7.598e-05,2]
[424450856,1780917956000,-500.0,7.598e-05,2]
[424450857,1780917956000,-500.0,7.598e-05,2]
[424450851,1780917956000,-159.04377052,7.598e-05,2]
[424450853,1780917956000,-500.0,7.598e-05,2]
[424450850,1780917956000,-300.0,7.597e-05,2]
[424450852,1780917956000,-500.0,7.598e-05,2]
[424450854,1780917956000,-500.0,7.598e-05,2]
[424450860,1780917956000,-500.0,7.598e-05,2]
[424450869,1780917956000,-500.0,7.598e-05,2]
[424450861,1780917956000,-500.0,7.598e-05,2]
[424450862,1780917956000,-500.0,7.598e-05,2]
[424450863,1780917956000,-500.0,7.598e-05,2]
[424450864,1780917956000,-500.0,7.598e-05,2]
[424450865,1780917956000,-500.0,7.598e-05,2]
[424450867,1780917956000,-500.0,7.598e-05,2]
[424450866,1780917956000,-500.0,7.598e-05,2]
[424450871,1780917956000,-320.84807628,7.598e-05,2]
[424450868,1780917956000,-500.0,7.598e-05,2]
[424450870,1780917956000,-500.0,7.598e-05,2]
[424450859,1780917956000,-500.0,7.598e-05,2]
[424450874,1780917957000,-500.0,7.598e-05,2]
[424450872,1780917957000,-179.15192372,7.598e-05,2]
[424450875,1780917957000,-500.0,7.598e-05,2]
[424450876,1780917957000,-500.0,7.598e-05,2]
[424450873,1780917957000,-500.0,7.598e-05,2]
[424450877,1780917958000,-500.0,7.598e-05,2]
[424450881,1780917958000,-500.0,7.598e-05,2]
[424450879,1780917958000,-500.0,7.598e-05,2]
[424450878,1780917958000,-500.0,7.598e-05,2]
[424450880,1780917958000,-500.0,7.598e-05,2]
[424450882,1780917958000,-500.0,7.598e-05,2]
[424450883,1780917958000,-500.0,7.598e-05,2]
[424450890,1780917958000,-500.0,7.598e-05,2]
[424450886,1780917958000,-500.0,7.598e-05,2]
[424450892,1780917958000,-320.84807628,7.598e-05,2]
[424450891,1780917958000,-500.0,7.598e-05,2]
[424450889,1780917958000,-500.0,7.598e-05,2]
[424450884,1780917958000,-500.0,7.598e-05,2]
[424450887,1780917958000,-500.0,7.598e-05,2]
[424450885,1780917958000,-500.0,7.598e-05,2]
[424450888,1780917958000,-500.0,7.598e-05,2]
[424450893,1780917959000,-179.15192372,7.598e-05,2]
[424450894,1780917959000,-500.0,7.598e-05,2]
[424450896,1780917959000,-500.0,7.598e-05,2]
[424450895,1780917959000,-500.0,7.598e-05,2]
[424450897,1780917959000,-500.0,7.598e-05,2]
[424450899,1780917959000,-500.0,7.598e-05,2]
[424450898,1780917959000,-500.0,7.598e-05,2]
[424450901,1780917959000,-500.0,7.598e-05,2]
[424450902,1780917959000,-500.0,7.598e-05,2]
[424450903,1780917959000,-500.0,7.598e-05,2]
[424450905,1780917959000,-250.0,7.598e-05,2]
[424450907,1780917959000,-500.0,7.598e-05,2]
[424450908,1780917959000,-3326.70286941,7.599e-05,2]
[424450906,1780917959000,-500.0,7.598e-05,2]
[424450900,1780917959000,-244.14520687,7.598e-05,2]
[424450904,1780917959000,-500.0,7.598e-05,2]
[424450909,1780917960000,-1727.41472811,7.599e-05,2]
[424450910,1780917960000,-190.776,7.599e-05,2]
[424450911,1780917960000,-8081.80927189,7.6e-05,2]
[424450916,1780917961000,-295.10655398,7.751e-05,2]
[424450915,1780917961000,-300.0,7.751e-05,2]
[424450913,1780917961000,-300.0,7.751e-05,2]
[424450914,1780917961000,-300.0,7.751e-05,2]
[424450912,1780917961000,-8804.89344602,7.6e-05,2]
[424450919,1780917975000,-300.0,7.751e-05,2]
[424450918,1780917975000,-300.0,7.751e-05,2]
[424450917,1780917975000,-4.89344602,7.751e-05,2]
[424450921,1780917976000,-300.0,7.751e-05,2]
[424450920,1780917976000,-300.0,7.751e-05,2]
[424450922,1780917976000,-300.0,7.751e-05,2]
[424450924,1780917976000,-300.0,7.751e-05,2]
[424450923,1780917976000,-300.0,7.751e-05,2]
[424450927,1780917976000,-300.0,7.751e-05,2]
[424450926,1780917976000,-300.0,7.751e-05,2]
[424450929,1780917976000,-5000.0,8e-05,2]
[424450928,1780917976000,-300.0,7.751e-05,2]
[424450930,1780917976000,-367.16539748,8.219e-05,2]
[424450925,1780917976000,-300.0,7.751e-05,2]
[424450931,1780918082000,-4686.98254502,0.0001005,2]
[424450932,1780918082000,-500.0,0.00010152,2]
[424450935,1780918082000,-500.0,0.00010152,2]
[424450933,1780918082000,-500.0,0.00010152,2]
[424450936,1780918082000,-500.0,0.00010152,2]
[424450937,1780918082000,-500.0,0.00010152,2]
[424450934,1780918082000,-413.34535036,0.00010152,2]
[424450938,1780918082000,-2399.67210462,0.00010153,2]
[424450960,1780918084000,-257.01577824,0.00010958,2]
[424450939,1780918084000,-2600.32789538,0.00010153,2]
[424450940,1780918084000,-300.0,0.00010354,2]
[424450941,1780918084000,-300.0,0.00010354,2]
[424450942,1780918084000,-300.0,0.00010354,2]
[424450943,1780918084000,-300.0,0.00010354,2]
[424450944,1780918084000,-300.0,0.00010354,2]
[424450945,1780918084000,-300.0,0.00010354,2]
[424450947,1780918084000,-300.0,0.00010354,2]
[424450948,1780918084000,-300.0,0.00010354,2]
[424450950,1780918084000,-300.0,0.00010354,2]
[424450946,1780918084000,-300.0,0.00010354,2]
[424450949,1780918084000,-300.0,0.00010354,2]
[424450961,1780918084000,-378.80667659,0.00010958,2]
[424450952,1780918084000,-300.0,0.00010354,2]
[424450958,1780918084000,-500.0,0.00010958,2]
[424450957,1780918084000,-500.0,0.00010958,2]
[424450954,1780918084000,-300.0,0.00010354,2]
[424450959,1780918084000,-500.0,0.00010958,2]
[424450956,1780918084000,-163.84964979,0.00010956,2]
[424450953,1780918084000,-300.0,0.00010354,2]
[424450951,1780918084000,-300.0,0.00010354,2]
[424450955,1780918084000,-600.0,0.0001056,2]
[424450968,1780918085000,-500.0,0.00010958,2]
[424450963,1780918085000,-500.0,0.00010958,2]
[424450962,1780918085000,-121.19332341,0.00010958,2]
[424450964,1780918085000,-500.0,0.00010958,2]
[424450965,1780918085000,-500.0,0.00010958,2]
[424450967,1780918085000,-500.0,0.00010958,2]
[424450966,1780918085000,-500.0,0.00010958,2]
[424450969,1780918085000,-370.90164481,0.00010958,2]
[424450975,1780918085000,-500.0,0.00010958,2]
[424450971,1780918085000,-500.0,0.00010958,2]
[424450970,1780918085000,-500.0,0.00010958,2]
[424450978,1780918085000,-500.0,0.00010958,2]
[424450976,1780918085000,-500.0,0.00010958,2]
[424450977,1780918085000,-500.0,0.00010958,2]
[424450974,1780918085000,-225.0,0.00010958,2]
[424450973,1780918085000,-500.0,0.00010958,2]
[424450972,1780918085000,-500.0,0.00010958,2]
[424450983,1780918086000,-282.90503178,0.00010958,2]
[424450982,1780918086000,-500.0,0.00010958,2]
[424450981,1780918086000,-500.0,0.00010958,2]
[424450979,1780918086000,-500.0,0.00010958,2]
[424450980,1780918086000,-500.0,0.00010958,2]
[424450987,1780918087000,-9097.80724993,0.00010959,2]
[424450986,1780918087000,-185.09778185,0.00010958,2]
[424450985,1780918087000,-500.0,0.00010958,2]
[424450984,1780918087000,-217.09496822,0.00010958,2]
[424450990,1780918092000,-720.0,0.00011616,2]
[424450989,1780918092000,-205.61452073,0.00011153,2]
[424450988,1780918092000,-2140.97944467,0.00010959,2]
[424450991,1780918093000,433.4060346,0.00010849,2]
[424450993,1780918132000,-4435.0,0.00010849,2]
[424450992,1780918132000,-5000.0,0.00010741,2]
[424451053,1780918232000,-433.45811007,0.0001074,2]
[424451261,1780918239000,-500.0,0.0001074,2]
[424451258,1780918239000,-500.0,0.0001074,2]
[424451263,1780918239000,-500.0,0.0001074,2]
[424451260,1780918239000,-500.0,0.0001074,2]
[424451256,1780918239000,-500.0,0.0001074,2]
[424451254,1780918239000,-500.0,0.0001074,2]
[424451251,1780918239000,-500.0,0.0001074,2]
[424451249,1780918239000,-500.0,0.0001074,2]
[424451237,1780918239000,-500.0,0.0001074,2]
[424451239,1780918239000,-500.0,0.0001074,2]
[424451245,1780918239000,-500.0,0.0001074,2]
[424451247,1780918239000,-500.0,0.0001074,2]
[424451231,1780918239000,-66.54188993,0.0001074,2]
[424451233,1780918239000,-500.0,0.0001074,2]
[424451241,1780918239000,-500.0,0.0001074,2]
[424451243,1780918239000,-500.0,0.0001074,2]
[424451265,1780918239000,-500.0,0.0001074,2]
[424451273,1780918239000,-500.0,0.0001074,2]
[424451267,1780918239000,-500.0,0.0001074,2]
[424451269,1780918239000,-500.0,0.0001074,2]
[424451307,1780918239000,-29976.17275552,0.00015,2]
[424451271,1780918239000,-500.0,0.0001074,2]
[424451304,1780918239000,-5234.65391034,0.00013955,2]
[424451302,1780918239000,-163.84964978,0.00013855,2]
[424451300,1780918239000,-680656.07313429,0.00013733,2]
[424451298,1780918239000,-500.0,0.00013698,2]
[424451286,1780918239000,-152.0,0.00012739,7]
[424451284,1780918239000,-29405.3822473,0.00012589,2]
[424451296,1780918239000,-289.8922515,0.00013697,2]
[424451305,1780918239000,-600.0,0.00014007,2]
[424451279,1780918239000,-600.0,0.0001074,2]
[424451290,1780918239000,-500.0,0.00013544,2]
[424451292,1780918239000,-176.37019,0.00013587,2]
[424451280,1780918239000,-131.5939654,0.00010849,2]
[424451294,1780918239000,-500.0,0.00013697,2]
[424451288,1780918239000,-377.03394438,0.00013233,14]
[424451276,1780918239000,-500.0,0.0001074,2]
[424451275,1780918239000,-500.0,0.0001074,2]
[424451282,1780918239000,-900.0,0.00012337,2]
[424451746,1780918248000,-3990.24623986,0.0001485,2]
[424451747,1780918248000,-33051.80110716,0.00015,2]
[424451745,1780918248000,-1009.75376014,0.0001485,2]
[424451748,1780918268000,500.0,0.0001074,2]
[424451750,1780918309000,-1438.27412053,0.00013633,2]
[424451794,1780919432000,-5000.0,0.0001153,2]
[424451796,1780919432000,-278.84538193,0.00011646,2]
[424451795,1780919432000,-500.0,0.00011646,2]
[424451797,1780919432000,-158.42364246,0.00011646,2]
[424451799,1780919432000,-500.0,0.00011646,2]
[424451798,1780919432000,-500.0,0.00011646,2]
[424451800,1780919432000,-342.75466681,0.00011646,2]
[424451805,1780919432000,-152.0,0.00012499,7]
[424451801,1780919432000,-1881.9954216,0.00011885,2]
[424451804,1780919432000,-2448.03879314,0.00012376,2]
[424451809,1780919432000,-500.0,0.00013698,2]
[424451803,1780919432000,-3863.80361306,0.00012376,2]
[424451815,1780919432000,-546.68730644,0.00013805,2]
[424451814,1780919432000,-3419.81881328,0.00013706,2]
[424451812,1780919432000,-500.0,0.00013698,2]
[424451813,1780919432000,-1267.88804272,0.00013706,2]
[424451802,1780919432000,-503.0268316,0.00012007,2]